[Event "Titled Tuesday Blitz July 20 2021"]
[White "Lazavik, Denis"]
[Black "Vdovin, Vadim"]
[WhiteFideId "13515110"]
[BlackFideId "24107158"]
[WhiteElo "2436"]
[BlackElo "2406"]
[Result "1-0"]
[Round "11"]
[TimeControl "180+1"]
[Date "2021.07.20"]
[WhiteClock "0:00:08"]
[BlackClock "0:00:04"]

1. d4 {[%clk 0:03:00]}  Nf6 {[%clk 0:02:59]} 2. c4 {[%clk 0:03:01]}  g6 {[%clk 0:02:58]} 3. g3 {[%clk 0:03:01]}  Bg7 {[%clk 0:02:58]} 4. Bg2 {[%clk 0:03:01]}  O-O {[%clk 0:02:58]} 5. Nc3 {[%clk 0:03:01]}  d6 {[%clk 0:02:59]} 6. Nf3 {[%clk 0:03:02]}  Nc6 {[%clk 0:03:00]} 7. O-O {[%clk 0:03:02]}  e5 {[%clk 0:03:00]} 8. dxe5 {[%clk 0:03:01]}  dxe5 {[%clk 0:03:00]} 9. Bg5 {[%clk 0:02:59]}  h6 {[%clk 0:03:00]} 10. Qxd8 {[%clk 0:02:57]}  Rxd8 {[%clk 0:03:01]} 11. Bxf6 {[%clk 0:02:58]}  Bxf6 {[%clk 0:03:00]} 12. Nd5 {[%clk 0:02:58]}  Kg7 {[%clk 0:03:01]} 13. Nxc7 {[%clk 0:02:58]}  Rb8 {[%clk 0:03:01]} 14. e4 {[%clk 0:02:53]}  Be7 {[%clk 0:03:01]} 15. Nd5 {[%clk 0:02:48]}  Bc5 {[%clk 0:03:01]} 16. a3 {[%clk 0:02:43]}  a5 {[%clk 0:03:00]} 17. Rfd1 {[%clk 0:02:41]}  a4 {[%clk 0:02:59]} 18. Nc3 {[%clk 0:02:36]}  Rxd1+ {[%clk 0:02:44]} 19. Rxd1 {[%clk 0:02:35]}  Ra8 {[%clk 0:02:44]} 20. Rd5 {[%clk 0:02:33]}  Bd4 {[%clk 0:02:07]} 21. Nxd4 {[%clk 0:02:17]}  exd4 {[%clk 0:02:07]} 22. Nb5 {[%clk 0:02:17]}  Be6 {[%clk 0:01:54]} 23. Rd6 {[%clk 0:02:17]}  Na5 {[%clk 0:00:46]} 24. c5 {[%clk 0:01:28]}  Rc8 {[%clk 0:00:38]} 25. Nxd4 {[%clk 0:01:25]}  Rxc5 {[%clk 0:00:33]} 26. Nxe6+ {[%clk 0:01:23]}  fxe6 {[%clk 0:00:33]} 27. Rxe6 {[%clk 0:01:14]}  Rb5 {[%clk 0:00:29]} 28. e5 {[%clk 0:00:59]}  Rxb2 {[%clk 0:00:26]} 29. Be4 {[%clk 0:00:59]}  Nc4 {[%clk 0:00:21]} 30. Rxg6+ {[%clk 0:00:56]}  Kf7 {[%clk 0:00:19]} 31. Rxh6 {[%clk 0:00:49]}  b5 {[%clk 0:00:13]} 32. e6+ {[%clk 0:00:28]}  Ke7 {[%clk 0:00:13]} 33. Bd5 {[%clk 0:00:28]}  Nb6 {[%clk 0:00:08]} 34. Rh7+ {[%clk 0:00:27]}  Kd6 {[%clk 0:00:09]} 35. e7 {[%clk 0:00:12]}  Re2 {[%clk 0:00:09]} 36. Bf3 {[%clk 0:00:12]}  Rxe7 {[%clk 0:00:08]} 37. Rh6+ {[%clk 0:00:12]}  Re6 {[%clk 0:00:05]} 38. Rxe6+ {[%clk 0:00:06]}  Kxe6 {[%clk 0:00:06]} 39. Be2 {[%clk 0:00:07]}  Nc4 {[%clk 0:00:03]} 40. Bxc4+ {[%clk 0:00:05]}  bxc4 {[%clk 0:00:04]} 41. Kf1 {[%clk 0:00:06]}  Kd5 {[%clk 0:00:03]} 42. Ke2 {[%clk 0:00:06]}  Kd4 {[%clk 0:00:03]} 43. Kd2 {[%clk 0:00:07]}  c3+ {[%clk 0:00:03]} 44. Kc2 {[%clk 0:00:08]}  Kc4 {[%clk 0:00:04]} 45. f4 {[%clk 0:00:08]} 1-0


[Site "https://www.chess.com"]

[Event "Titled Tuesday Blitz July 20 2021"]
[White "Le, Tuan Minh"]
[Black "Quparadze, Giga"]
[WhiteFideId "12401153"]
[BlackFideId "13602250"]
[WhiteElo "2450"]
[BlackElo "2658"]
[Result "1-0"]
[Round "11"]
[TimeControl "180+1"]
[Date "2021.07.20"]
[WhiteClock "0:00:13"]
[BlackClock "0:00:05"]

1. d4 {[%clk 0:03:00]}  Nf6 {[%clk 0:03:00]} 2. Nf3 {[%clk 0:03:01]}  e6 {[%clk 0:03:00]} 3. Bf4 {[%clk 0:03:01]}  c5 {[%clk 0:02:59]} 4. c3 {[%clk 0:03:01]}  b6 {[%clk 0:02:58]} 5. e3 {[%clk 0:03:02]}  Bb7 {[%clk 0:02:58]} 6. Nbd2 {[%clk 0:03:02]}  Nh5 {[%clk 0:02:57]} 7. Bg3 {[%clk 0:03:01]}  Nxg3 {[%clk 0:02:49]} 8. hxg3 {[%clk 0:03:02]}  d6 {[%clk 0:02:47]} 9. Bd3 {[%clk 0:03:03]}  g6 {[%clk 0:02:46]} 10. Qe2 {[%clk 0:02:47]}  Bg7 {[%clk 0:02:46]} 11. a4 {[%clk 0:02:45]}  Qc7 {[%clk 0:02:44]} 12. a5 {[%clk 0:02:43]}  Nd7 {[%clk 0:02:43]} 13. O-O {[%clk 0:02:36]}  O-O {[%clk 0:02:42]} 14. Ba6 {[%clk 0:02:16]}  Bc6 {[%clk 0:02:41]} 15. Bb5 {[%clk 0:02:15]}  Nf6 {[%clk 0:02:25]} 16. Ra3 {[%clk 0:02:08]}  cxd4 {[%clk 0:02:16]} 17. cxd4 {[%clk 0:02:05]}  bxa5 {[%clk 0:02:10]} 18. Qc4 {[%clk 0:01:53]}  Rfc8 {[%clk 0:01:42]} 19. Rc1 {[%clk 0:01:45]}  Bxb5 {[%clk 0:01:41]} 20. Qxc7 {[%clk 0:01:45]}  Rxc7 {[%clk 0:01:42]} 21. Rxc7 {[%clk 0:01:46]}  a4 {[%clk 0:01:42]} 22. Rac3 {[%clk 0:01:36]}  Ba6 {[%clk 0:01:19]} 23. R7c6 {[%clk 0:01:11]}  Bb7 {[%clk 0:01:18]} 24. R6c4 {[%clk 0:00:51]}  Nd5 {[%clk 0:01:11]} 25. Rc1 {[%clk 0:00:51]}  Nb6 {[%clk 0:01:09]} 26. Rc7 {[%clk 0:00:51]}  Rb8 {[%clk 0:01:04]} 27. Ng5 {[%clk 0:00:46]}  Nd5 {[%clk 0:00:54]} 28. R7c4 {[%clk 0:00:43]}  h6 {[%clk 0:00:46]} 29. Nge4 {[%clk 0:00:40]}  Nb6 {[%clk 0:00:41]} 30. R4c2 {[%clk 0:00:37]}  Bf8 {[%clk 0:00:40]} 31. Ra1 {[%clk 0:00:34]}  Kg7 {[%clk 0:00:39]} 32. Nc3 {[%clk 0:00:30]}  Bc6 {[%clk 0:00:40]} 33. b3 {[%clk 0:00:27]}  axb3 {[%clk 0:00:39]} 34. Nxb3 {[%clk 0:00:28]}  Nc4 {[%clk 0:00:38]} 35. Nd2 {[%clk 0:00:26]}  Nxd2 {[%clk 0:00:33]} 36. Rxd2 {[%clk 0:00:26]}  Rb7 {[%clk 0:00:32]} 37. Rda2 {[%clk 0:00:27]}  Rb3 {[%clk 0:00:31]} 38. Ra3 {[%clk 0:00:25]}  Rb2 {[%clk 0:00:26]} 39. Rxa7 {[%clk 0:00:26]}  Rc2 {[%clk 0:00:26]} 40. R7a3 {[%clk 0:00:21]}  d5 {[%clk 0:00:22]} 41. Rb3 {[%clk 0:00:21]}  h5 {[%clk 0:00:22]} 42. Kf1 {[%clk 0:00:16]}  e5 {[%clk 0:00:16]} 43. Ne2 {[%clk 0:00:15]}  Bd7 {[%clk 0:00:11]} 44. dxe5 {[%clk 0:00:14]}  Bg4 {[%clk 0:00:08]} 45. Nd4 {[%clk 0:00:14]}  Rd2 {[%clk 0:00:07]} 46. f3 {[%clk 0:00:14]}  Bd7 {[%clk 0:00:07]} 47. Rb7 {[%clk 0:00:14]}  Bc8 {[%clk 0:00:05]} 48. Rc7 {[%clk 0:00:13]} 1-0


[Site "https://www.chess.com"]

[Event "Titled Tuesday Blitz July 20 2021"]
[White "Leitao, Rafael"]
[Black "Rustemov, Alexander"]
[WhiteFideId "2101246"]
[BlackFideId "4119002"]
[WhiteElo "2609"]
[BlackElo "2843"]
[Result "1-0"]
[Round "11"]
[TimeControl "180+1"]
[Date "2021.07.20"]
[WhiteClock "0:00:21"]
[BlackClock "0:00:18"]

1. c4 {[%clk 0:03:00]}  c5 {[%clk 0:02:59]} 2. g3 {[%clk 0:02:57]}  g6 {[%clk 0:02:59]} 3. Bg2 {[%clk 0:02:57]}  Bg7 {[%clk 0:03:00]} 4. Nc3 {[%clk 0:02:58]}  Nc6 {[%clk 0:02:59]} 5. Nf3 {[%clk 0:02:58]}  b6 {[%clk 0:02:59]} 6. O-O {[%clk 0:02:54]}  Bb7 {[%clk 0:02:59]} 7. e3 {[%clk 0:02:54]}  Bxc3 {[%clk 0:02:59]} 8. bxc3 {[%clk 0:02:54]}  d6 {[%clk 0:03:00]} 9. d3 {[%clk 0:02:51]}  Nf6 {[%clk 0:02:57]} 10. e4 {[%clk 0:02:51]}  h6 {[%clk 0:02:55]} 11. Nh4 {[%clk 0:02:45]}  Qc7 {[%clk 0:02:52]} 12. f4 {[%clk 0:02:44]}  O-O-O {[%clk 0:02:50]} 13. Nf3 {[%clk 0:02:43]}  e6 {[%clk 0:02:45]} 14. a4 {[%clk 0:02:42]}  Na5 {[%clk 0:02:43]} 15. Rb1 {[%clk 0:02:41]}  Kb8 {[%clk 0:02:38]} 16. Re1 {[%clk 0:02:30]}  Nd7 {[%clk 0:02:35]} 17. e5 {[%clk 0:02:27]}  dxe5 {[%clk 0:02:14]} 18. fxe5 {[%clk 0:02:27]}  g5 {[%clk 0:02:13]} 19. h3 {[%clk 0:02:20]}  Rhg8 {[%clk 0:02:09]} 20. Qe2 {[%clk 0:02:12]}  Nf8 {[%clk 0:01:52]} 21. Rb5 {[%clk 0:01:40]}  Ng6 {[%clk 0:01:51]} 22. Be3 {[%clk 0:01:35]}  Nc6 {[%clk 0:01:41]} 23. Bf2 {[%clk 0:01:34]}  h5 {[%clk 0:01:35]} 24. a5 {[%clk 0:01:33]}  g4 {[%clk 0:01:33]} 25. hxg4 {[%clk 0:01:33]}  hxg4 {[%clk 0:01:34]} 26. axb6 {[%clk 0:01:33]}  axb6 {[%clk 0:01:34]} 27. Nh2 {[%clk 0:01:12]}  Ngxe5 {[%clk 0:01:25]} 28. Reb1 {[%clk 0:01:09]}  Nd7 {[%clk 0:01:17]} 29. Nxg4 {[%clk 0:01:05]}  f5 {[%clk 0:01:13]} 30. Nh2 {[%clk 0:00:33]}  f4 {[%clk 0:01:04]} 31. g4 {[%clk 0:00:33]}  Rg6 {[%clk 0:00:52]} 32. Qb2 {[%clk 0:00:32]}  Rdg8 {[%clk 0:00:49]} 33. Rxb6 {[%clk 0:00:28]}  Qxb6 {[%clk 0:00:46]} 34. Qxb6 {[%clk 0:00:28]}  Nxb6 {[%clk 0:00:47]} 35. Rxb6 {[%clk 0:00:28]}  Kc7 {[%clk 0:00:47]} 36. Rb5 {[%clk 0:00:26]}  Rxg4 {[%clk 0:00:27]} 37. Nxg4 {[%clk 0:00:26]}  Rxg4 {[%clk 0:00:28]} 38. Kf1 {[%clk 0:00:24]}  Rxg2 {[%clk 0:00:21]} 39. Kxg2 {[%clk 0:00:23]}  Nd4+ {[%clk 0:00:21]} 40. Rxb7+ {[%clk 0:00:22]}  Kxb7 {[%clk 0:00:18]} 41. cxd4 {[%clk 0:00:21]} 1-0


[Site "https://www.chess.com"]

[Event "Titled Tuesday Blitz July 20 2021"]
[White "Martins, Igor Carvalho Ribeiro"]
[Black "Onufrienko, Vladislav"]
[WhiteFideId "2162962"]
[BlackFideId "13804332"]
[WhiteElo "2524"]
[BlackElo "1661"]
[Result "0-1"]
[Round "11"]
[TimeControl "180+1"]
[Date "2021.07.21"]
[WhiteClock "0:00:14"]
[BlackClock "0:00:52"]

1. Nf3 {[%clk 0:03:00]}  d5 {[%clk 0:03:00]} 2. d4 {[%clk 0:03:00]}  c6 {[%clk 0:03:00]} 3. c4 {[%clk 0:03:00]}  e6 {[%clk 0:03:00]} 4. Qc2 {[%clk 0:03:00]}  f5 {[%clk 0:03:00]} 5. g3 {[%clk 0:03:00]}  Nf6 {[%clk 0:03:00]} 6. Bg2 {[%clk 0:03:00]}  Bd6 {[%clk 0:03:00]} 7. O-O {[%clk 0:03:00]}  O-O {[%clk 0:03:01]} 8. Nc3 {[%clk 0:03:00]}  Ne4 {[%clk 0:03:01]} 9. Rb1 {[%clk 0:02:59]}  a5 {[%clk 0:03:00]} 10. a3 {[%clk 0:02:58]}  b6 {[%clk 0:02:59]} 11. Bf4 {[%clk 0:02:50]}  Ba6 {[%clk 0:02:57]} 12. Bxd6 {[%clk 0:02:22]}  Qxd6 {[%clk 0:02:58]} 13. Ne5 {[%clk 0:02:10]}  Nd7 {[%clk 0:02:52]} 14. Nxe4 {[%clk 0:02:02]}  fxe4 {[%clk 0:02:50]} 15. Nxd7 {[%clk 0:01:37]}  Qxd7 {[%clk 0:02:51]} 16. b3 {[%clk 0:01:37]}  Qd6 {[%clk 0:02:50]} 17. Ra1 {[%clk 0:01:24]}  Rac8 {[%clk 0:02:49]} 18. Rfd1 {[%clk 0:01:21]}  e5 {[%clk 0:02:37]} 19. e3 {[%clk 0:01:11]}  exd4 {[%clk 0:02:30]} 20. Rxd4 {[%clk 0:01:10]}  Qf6 {[%clk 0:02:22]} 21. Rad1 {[%clk 0:01:03]}  Bb7 {[%clk 0:02:18]} 22. R4d2 {[%clk 0:00:56]}  Kh8 {[%clk 0:02:14]} 23. c5 {[%clk 0:00:56]}  b5 {[%clk 0:02:09]} 24. Qb2 {[%clk 0:00:53]}  Qe7 {[%clk 0:02:04]} 25. Qd4 {[%clk 0:00:52]}  Rf6 {[%clk 0:01:54]} 26. Ra1 {[%clk 0:00:49]}  Rcf8 {[%clk 0:01:53]} 27. b4 {[%clk 0:00:49]}  a4 {[%clk 0:01:52]} 28. Raa2 {[%clk 0:00:47]}  Bc8 {[%clk 0:01:51]} 29. Ra1 {[%clk 0:00:45]}  Qf7 {[%clk 0:01:49]} 30. Raa2 {[%clk 0:00:42]}  Qh5 {[%clk 0:01:46]} 31. h4 {[%clk 0:00:26]}  Bg4 {[%clk 0:01:41]} 32. Qc3 {[%clk 0:00:20]}  Bf3 {[%clk 0:01:32]} 33. Bxf3 {[%clk 0:00:18]}  Qxf3 {[%clk 0:01:32]} 34. Qc2 {[%clk 0:00:18]}  Qg4 {[%clk 0:01:24]} 35. Qd1 {[%clk 0:00:18]}  Rf3 {[%clk 0:01:24]} 36. Kg2 {[%clk 0:00:17]}  R8f6 {[%clk 0:01:20]} 37. Qh1 {[%clk 0:00:16]}  Qg6 {[%clk 0:01:03]} 38. Qh3 {[%clk 0:00:16]}  h5 {[%clk 0:01:01]} 39. Re2 {[%clk 0:00:15]}  Qf7 {[%clk 0:01:00]} 40. Rad2 {[%clk 0:00:14]}  Kh7 {[%clk 0:00:58]} 41. Kg1 {[%clk 0:00:14]}  R6f5 {[%clk 0:00:54]} 42. Kg2 {[%clk 0:00:15]}  Qf6 {[%clk 0:00:54]} 43. Rd4 {[%clk 0:00:14]}  Rxf2+ {[%clk 0:00:52]} 0-1


[Site "https://www.chess.com"]

[Event "Titled Tuesday Blitz July 20 2021"]
[White "Mestnikov, Aisen"]
[Black "Mazi, Leon"]
[WhiteFideId "34130117"]
[BlackFideId "14600315"]
[WhiteElo "2027"]
[BlackElo "2333"]
[Result "1-0"]
[Round "11"]
[TimeControl "180+1"]
[Date "2021.07.21"]
[WhiteClock "0:01:13"]
[BlackClock "0:00:57"]

1. d4 {[%clk 0:03:00]}  d5 {[%clk 0:02:58]} 2. c4 {[%clk 0:03:00]}  dxc4 {[%clk 0:02:56]} 3. Nf3 {[%clk 0:03:00]}  Nf6 {[%clk 0:02:54]} 4. Nc3 {[%clk 0:03:00]}  Bg4 {[%clk 0:02:51]} 5. e4 {[%clk 0:02:59]}  e6 {[%clk 0:02:49]} 6. Bxc4 {[%clk 0:02:58]}  Nbd7 {[%clk 0:02:46]} 7. O-O {[%clk 0:02:56]}  Be7 {[%clk 0:02:44]} 8. h3 {[%clk 0:02:54]}  Bh5 {[%clk 0:02:43]} 9. Be3 {[%clk 0:02:51]}  c6 {[%clk 0:02:38]} 10. Qb3 {[%clk 0:02:48]}  Bxf3 {[%clk 0:02:25]} 11. gxf3 {[%clk 0:02:47]}  b5 {[%clk 0:02:25]} 12. Bd3 {[%clk 0:02:44]}  O-O {[%clk 0:02:21]} 13. Rad1 {[%clk 0:02:41]}  Qc7 {[%clk 0:02:05]} 14. f4 {[%clk 0:02:25]}  Nh5 {[%clk 0:01:55]} 15. e5 {[%clk 0:02:21]}  Nb6 {[%clk 0:01:51]} 16. Qc2 {[%clk 0:02:16]}  g6 {[%clk 0:01:51]} 17. Nxb5 {[%clk 0:02:15]}  Qd7 {[%clk 0:01:47]} 18. Nc3 {[%clk 0:02:12]}  Nd5 {[%clk 0:01:46]} 19. Nxd5 {[%clk 0:02:00]}  cxd5 {[%clk 0:01:43]} 20. Rc1 {[%clk 0:01:57]}  Rac8 {[%clk 0:01:30]} 21. Qb3 {[%clk 0:01:53]}  f6 {[%clk 0:01:30]} 22. Qb5 {[%clk 0:01:47]}  Qxb5 {[%clk 0:01:23]} 23. Bxb5 {[%clk 0:01:46]}  Rb8 {[%clk 0:01:23]} 24. Bd7 {[%clk 0:01:33]}  Kf7 {[%clk 0:01:23]} 25. Rc6 {[%clk 0:01:28]}  Ng7 {[%clk 0:01:20]} 26. b3 {[%clk 0:01:26]}  Rfd8 {[%clk 0:01:09]} 27. Rc7 {[%clk 0:01:25]}  a5 {[%clk 0:01:06]} 28. Rfc1 {[%clk 0:01:23]}  Kf8 {[%clk 0:00:57]} 29. R1c6 {[%clk 0:01:13]} 1-0


[Site "https://www.chess.com"]

[Event "Titled Tuesday Blitz July 20 2021"]
[White "Molina, Roberto Junio Brito"]
[Black "Tologon tegin, Semetei"]
[WhiteFideId "2109450"]
[BlackFideId "13800574"]
[WhiteElo "2402"]
[BlackElo "2224"]
[Result "1/2-1/2"]
[Round "11"]
[TimeControl "180+1"]
[Date "2021.07.21"]
[WhiteClock "0:00:44"]
[BlackClock "0:00:15"]

1. d4 {[%clk 0:03:00]}  Nf6 {[%clk 0:02:57]} 2. c4 {[%clk 0:03:00]}  e6 {[%clk 0:02:57]} 3. Nf3 {[%clk 0:02:59]}  b6 {[%clk 0:02:56]} 4. g3 {[%clk 0:02:59]}  Bb7 {[%clk 0:02:56]} 5. Bg2 {[%clk 0:02:59]}  g6 {[%clk 0:02:57]} 6. Nc3 {[%clk 0:02:59]}  Bg7 {[%clk 0:02:57]} 7. Qc2 {[%clk 0:02:57]}  d5 {[%clk 0:02:56]} 8. cxd5 {[%clk 0:02:52]}  exd5 {[%clk 0:02:57]} 9. Bf4 {[%clk 0:02:50]}  c6 {[%clk 0:02:57]} 10. b4 {[%clk 0:02:48]}  O-O {[%clk 0:02:38]} 11. O-O {[%clk 0:02:46]}  Nbd7 {[%clk 0:02:33]} 12. Rfd1 {[%clk 0:02:41]}  Re8 {[%clk 0:02:32]} 13. Rac1 {[%clk 0:02:36]}  Rc8 {[%clk 0:02:32]} 14. Qb3 {[%clk 0:02:25]}  Qe7 {[%clk 0:02:30]} 15. Bg5 {[%clk 0:02:20]}  h6 {[%clk 0:02:30]} 16. Bxf6 {[%clk 0:02:20]}  Bxf6 {[%clk 0:02:12]} 17. e3 {[%clk 0:02:18]}  Qe6 {[%clk 0:01:44]} 18. a4 {[%clk 0:02:04]}  Bg7 {[%clk 0:01:38]} 19. Ne1 {[%clk 0:01:53]}  h5 {[%clk 0:01:13]} 20. h4 {[%clk 0:01:50]}  Nf6 {[%clk 0:01:12]} 21. Nd3 {[%clk 0:01:48]}  Ng4 {[%clk 0:01:12]} 22. Nf4 {[%clk 0:01:48]}  Qd6 {[%clk 0:01:06]} 23. b5 {[%clk 0:01:45]}  Bh6 {[%clk 0:00:53]} 24. bxc6 {[%clk 0:01:43]}  Bxc6 {[%clk 0:00:52]} 25. Ncxd5 {[%clk 0:01:23]}  Bxf4 {[%clk 0:00:33]} 26. Nxf4 {[%clk 0:01:20]}  Bxg2 {[%clk 0:00:31]} 27. Kxg2 {[%clk 0:01:21]}  Rxc1 {[%clk 0:00:21]} 28. Rxc1 {[%clk 0:01:21]}  Qe7 {[%clk 0:00:22]} 29. Qd5 {[%clk 0:01:14]}  Nxf2 {[%clk 0:00:19]} 30. Rc6 {[%clk 0:00:59]}  Kg7 {[%clk 0:00:17]} 31. Qe5+ {[%clk 0:00:43]}  Qxe5 {[%clk 0:00:17]} 32. dxe5 {[%clk 0:00:44]}  Ng4 {[%clk 0:00:18]} 33. e6 {[%clk 0:00:44]}  Nxe3+ {[%clk 0:00:17]} 34. Kf3 {[%clk 0:00:42]}  Nf5 {[%clk 0:00:17]} 35. Rc7 {[%clk 0:00:34]}  Nd4+ {[%clk 0:00:16]} 36. Kg2 {[%clk 0:00:32]}  Nxe6 {[%clk 0:00:17]} 37. Nxe6+ {[%clk 0:00:31]}  Rxe6 {[%clk 0:00:18]} 38. Rxa7 {[%clk 0:00:32]}  Re2+ {[%clk 0:00:18]} 39. Kf3 {[%clk 0:00:31]}  Ra2 {[%clk 0:00:18]} 40. Ra6 {[%clk 0:00:32]}  Ra3+ {[%clk 0:00:17]} 41. Kg2 {[%clk 0:00:32]}  Ra2+ {[%clk 0:00:14]} 42. Kf3 {[%clk 0:00:33]}  Ra1 {[%clk 0:00:15]} 43. Kf2 {[%clk 0:00:33]}  Ra3 {[%clk 0:00:14]} 44. Kg2 {[%clk 0:00:33]}  f6 {[%clk 0:00:12]} 45. Ra7+ {[%clk 0:00:26]}  Kh6 {[%clk 0:00:12]} 46. Ra6 {[%clk 0:00:26]}  Rb3 {[%clk 0:00:11]} 47. Kh3 {[%clk 0:00:24]}  Rb2 {[%clk 0:00:10]} 48. a5 {[%clk 0:00:22]}  bxa5 {[%clk 0:00:10]} 49. Rxa5 {[%clk 0:00:22]}  Re2 {[%clk 0:00:10]} 50. Ra7 {[%clk 0:00:21]}  g5 {[%clk 0:00:08]} 51. hxg5+ {[%clk 0:00:22]}  fxg5 {[%clk 0:00:08]} 52. Ra6+ {[%clk 0:00:22]}  Kg7 {[%clk 0:00:09]} 53. Rb6 {[%clk 0:00:22]}  Kf7 {[%clk 0:00:09]} 54. Rh6 {[%clk 0:00:19]}  Kg7 {[%clk 0:00:07]} 55. Rxh5 {[%clk 0:00:18]}  Kg6 {[%clk 0:00:07]} 56. Rh8 {[%clk 0:00:18]}  Re1 {[%clk 0:00:08]} 57. Kg4 {[%clk 0:00:17]}  Re4+ {[%clk 0:00:07]} 58. Kf3 {[%clk 0:00:18]}  Ra4 {[%clk 0:00:07]} 59. Rg8+ {[%clk 0:00:18]}  Kf5 {[%clk 0:00:08]} 60. Rf8+ {[%clk 0:00:18]}  Kg6 {[%clk 0:00:08]} 61. Kg2 {[%clk 0:00:19]}  g4 {[%clk 0:00:07]} 62. Rf2 {[%clk 0:00:19]}  Kg5 {[%clk 0:00:08]} 63. Rb2 {[%clk 0:00:19]}  Ra5 {[%clk 0:00:07]} 64. Kf2 {[%clk 0:00:19]}  Rc5 {[%clk 0:00:07]} 65. Ra2 {[%clk 0:00:18]}  Rf5+ {[%clk 0:00:08]} 66. Kg2 {[%clk 0:00:19]}  Re5 {[%clk 0:00:08]} 67. Rd2 {[%clk 0:00:18]}  Rf5 {[%clk 0:00:09]} 68. Kg1 {[%clk 0:00:18]}  Rf3 {[%clk 0:00:09]} 69. Kh2 {[%clk 0:00:18]}  Kf5 {[%clk 0:00:09]} 70. Kg2 {[%clk 0:00:18]}  Ke4 {[%clk 0:00:09]} 71. Rd8 {[%clk 0:00:18]}  Rd3 {[%clk 0:00:07]} 72. Re8+ {[%clk 0:00:18]}  Kf5 {[%clk 0:00:08]} 73. Rf8+ {[%clk 0:00:18]}  Kg5 {[%clk 0:00:08]} 74. Rg8+ {[%clk 0:00:18]}  Kf5 {[%clk 0:00:08]} 75. Rf8+ {[%clk 0:00:19]}  Kg6 {[%clk 0:00:09]} 76. Rg8+ {[%clk 0:00:19]}  Kh5 {[%clk 0:00:09]} 77. Kf2 {[%clk 0:00:18]}  Rf3+ {[%clk 0:00:09]} 78. Kg2 {[%clk 0:00:18]}  Ra3 {[%clk 0:00:08]} 79. Rg7 {[%clk 0:00:18]}  Ra4 {[%clk 0:00:08]} 80. Kf2 {[%clk 0:00:17]}  Kh6 {[%clk 0:00:08]} 81. Re7 {[%clk 0:00:16]}  Kg5 {[%clk 0:00:08]} 82. Re5+ {[%clk 0:00:16]}  Kf6 {[%clk 0:00:08]} 83. Rb5 {[%clk 0:00:17]}  Ra2+ {[%clk 0:00:07]} 84. Ke3 {[%clk 0:00:17]}  Ra4 {[%clk 0:00:07]} 85. Rc5 {[%clk 0:00:16]}  Kg6 {[%clk 0:00:07]} 86. Rd5 {[%clk 0:00:17]}  Kf6 {[%clk 0:00:07]} 87. Rd4 {[%clk 0:00:15]}  Rxd4 {[%clk 0:00:06]} 88. Kxd4 {[%clk 0:00:14]}  Kf5 {[%clk 0:00:06]} 89. Kd5 {[%clk 0:00:14]}  Kf6 {[%clk 0:00:07]} 90. Ke4 {[%clk 0:00:15]}  Kf7 {[%clk 0:00:07]} 91. Kf5 {[%clk 0:00:15]}  Kg7 {[%clk 0:00:07]} 92. Kg5 {[%clk 0:00:16]}  Kf7 {[%clk 0:00:07]} 93. Kh5 {[%clk 0:00:17]}  Kg7 {[%clk 0:00:07]} 94. Kh4 {[%clk 0:00:18]}  Kh7 {[%clk 0:00:07]} 95. Kg5 {[%clk 0:00:18]}  Kg7 {[%clk 0:00:07]} 96. Kxg4 {[%clk 0:00:18]}  Kg6 {[%clk 0:00:07]} 97. Kf4 {[%clk 0:00:19]}  Kf6 {[%clk 0:00:08]} 98. Ke4 {[%clk 0:00:20]}  Ke6 {[%clk 0:00:08]} 99. Ke3 {[%clk 0:00:21]}  Ke5 {[%clk 0:00:08]} 100. Kf3 {[%clk 0:00:21]}  Kf5 {[%clk 0:00:08]} 101. Ke2 {[%clk 0:00:22]}  Ke4 {[%clk 0:00:08]} 102. Kf2 {[%clk 0:00:22]}  Kf5 {[%clk 0:00:08]} 103. Kf3 {[%clk 0:00:23]}  Kg5 {[%clk 0:00:08]} 104. Kg2 {[%clk 0:00:23]}  Kg4 {[%clk 0:00:08]} 105. Kh2 {[%clk 0:00:24]}  Kg5 {[%clk 0:00:09]} 106. Kg1 {[%clk 0:00:25]}  Kg4 {[%clk 0:00:09]} 107. Kg2 {[%clk 0:00:25]}  Kg5 {[%clk 0:00:10]} 108. Kh3 {[%clk 0:00:26]}  Kh5 {[%clk 0:00:10]} 109. g4+ {[%clk 0:00:27]}  Kg5 {[%clk 0:00:10]} 110. Kg3 {[%clk 0:00:28]}  Kg6 {[%clk 0:00:10]} 111. Kg2 {[%clk 0:00:29]}  Kg5 {[%clk 0:00:11]} 112. Kf3 {[%clk 0:00:29]}  Kg6 {[%clk 0:00:11]} 113. Kf2 {[%clk 0:00:30]}  Kg5 {[%clk 0:00:11]} 114. Kg3 {[%clk 0:00:31]}  Kg6 {[%clk 0:00:11]} 115. Kh2 {[%clk 0:00:32]}  Kg5 {[%clk 0:00:12]} 116. Kh3 {[%clk 0:00:33]}  Kg6 {[%clk 0:00:12]} 117. Kh4 {[%clk 0:00:34]}  Kh6 {[%clk 0:00:13]} 118. g5+ {[%clk 0:00:35]}  Kg6 {[%clk 0:00:13]} 119. Kg4 {[%clk 0:00:35]}  Kg7 {[%clk 0:00:14]} 120. Kf5 {[%clk 0:00:36]}  Kf7 {[%clk 0:00:13]} 121. Ke5 {[%clk 0:00:37]}  Kg6 {[%clk 0:00:14]} 122. Kf4 {[%clk 0:00:38]}  Kg7 {[%clk 0:00:13]} 123. Kf3 {[%clk 0:00:38]}  Kf7 {[%clk 0:00:14]} 124. Kg4 {[%clk 0:00:39]}  Kg6 {[%clk 0:00:14]} 125. Kh4 {[%clk 0:00:39]}  Kg7 {[%clk 0:00:14]} 126. Kh3 {[%clk 0:00:40]}  Kg6 {[%clk 0:00:15]} 127. Kg4 {[%clk 0:00:41]}  Kg7 {[%clk 0:00:15]} 128. Kf5 {[%clk 0:00:42]}  Kf7 {[%clk 0:00:15]} 129. g6+ {[%clk 0:00:42]}  Kg7 {[%clk 0:00:15]} 130. Kg5 {[%clk 0:00:43]}  Kg8 {[%clk 0:00:15]} 131. Kf4 {[%clk 0:00:44]}  Kg7 {[%clk 0:00:15]} 132. Ke5 {[%clk 0:00:44]}  Kxg6 {[%clk 0:00:15]} 1/2-1/2


[Site "https://www.chess.com"]